Cogmind - Beta 13 @@@ ROGUE MODE // 2024.04.25 @ 00:12:48 Player: EYE-VY Result: Destroyed by 60-QYQ(R) with Subdweller Laser Performance ------------- Evolutions (0) 0 Regions Visited (3) 600 Robots Destroyed (25) 125 Value Destroyed (775) 775 Prototype IDs (2) 40 Alien Tech Used (0) 0 Bonus (60) 60 TOTAL SCORE: 1600 Bonus ------- Follower Combat Kills 60 Cogmind --------- Core Integrity 0/250 Matter 79/300 Energy 98/100 System Corruption 0% Temperature Cool (6) Movement Core (100) Ox1 Location -10/Subcaves Parts ------- > --- POWER (1) -------- (None) > --- PROPULSION (2) --- (None) > --- UTILITY (2) ------ (None) > --- WEAPON (2) ------- Heavy Battle Rifle > --- INVENTORY (5) ---- Ion Engine Aluminum Leg Sensor Array Beam Cannon Barrage Gun Peak State ------------ > --- POWER ------------ Ion Engine > --- PROPULSION ------- Aluminum Leg Aluminum Leg > --- UTILITY ---------- Scrap Shield > --- WEAPON ----------- Heavy Battle Rifle Subdweller Shrapnel Launcher > --- INVENTORY -------- Ion Engine Aluminum Leg Sensor Array Beam Cannon Beam Cannon [Rating: 13] Favorites ----------- Power Ion Engine Engine Ion Engine Propulsion Aluminum Leg Leg Aluminum Leg Utility Small Storage Unit Device Sensor Array Storage Small Storage Unit Processor Signal Interpreter Protection Scrap Shield Weapon Assault Rifle Energy Cannon Beam Cannon Ballistic Gun Assault Rifle Launcher Subdweller Shrapnel Launcher Build | -11 -10 -10 -10 ------- Run | Yrd Mat Min Sub Slots Evolved . | . . . . Power . | . . . . Propulsion . | . . . . Utility . | . . . . Weapon . | . . . . Parts Attached 29 | 6 4 12 7 Power 4 | 1 1 2 . Engine 4 | 1 1 2 . Core . | . . . . Reactor . | . . . . Propulsion 6 | 2 . 3 1 Treads . | . . . . Leg 6 | 2 . 3 1 Wheel . | . . . . Hover . | . . . . Flight . | . . . . Utility 6 | 1 2 1 2 Device 3 | . 2 . 1 Storage 1 | 1 . . . Processor 1 | . . 1 . Hackware . | . . . . Protection 1 | . . . 1 Artifact . | . . . . Weapon 13 | 2 1 6 4 Energy Gun . | . . . . Energy Cannon 2 | . . 2 . Ballistic Gun 8 | 2 1 2 3 Ballistic Cannon . | . . . . Launcher 3 | . . 2 1 Special Weapon . | . . . . Impact Weapon . | . . . . Slashing Weapon . | . . . . Piercing Weapon . | . . . . Special Melee Weapon . | . . . . Unidentified Prototypes . | . . . . Parts Lost 6 | . . 1 5 Power 1 | . . . 1 Propulsion 2 | . . . 2 Utility 1 | . . . 1 Weapon 2 | . . 1 1 Highest Loss Streak 5 | . . 1 5 To Critical Strikes . | . . . . Average Slot Usage (%) 94 | . 93 100 87 Engine 13 | . 14 14 13 Leg 27 | . 28 28 27 Device 6 | . 7 8 2 Storage 8 | . 14 14 . Processor 3 | . . 5 2 Protection 4 | . . . 11 Energy Cannon 11 | . . 16 8 Ballistic Gun 12 | . 28 11 9 Launcher 4 | . . . 9 Naked Turns . | . . . . Heaviest Build 35 | 12 13 17 35 Greatest Support 20 | 20 20 20 20 Greatest Overweight (x) 1 | . . . 1 Average Overweight (x) . | . . . . Largest Inventory Capacity 8 | 8 8 8 8 Average Capacity 6 | 7 8 8 5 Most Carried 8 | 4 8 8 8 Average Carried 6 | 3 6 7 5 Final Capacity 8 | 8 8 8 5 Final Carried 8 | 4 8 8 5 Class Distribution -------------------- 66% | Mutant 30% | Scavenger-Mutant Dominant Class ---------------- Mutant | -10/Materials Mutant | -10/Mines Mutant | -10/Subcaves Resources | -11 -10 -10 -10 ----------- Run | Yrd Mat Min Sub Matter Collected 806 | 212 134 268 192 Remotely . | . . . . Salvage Created 737 | . 162 263 312 Parts 54 | . 13 19 22 Haulers Intercepted . | . . . . Recyclers Shooed 1 | . 1 . . Parts Field Recycled . | . . . . Retrieved Matter . | . . . . Parts Self-Destructed 11 | . . . 11 Prevented . | . . . . Kills | -11 -10 -10 -10 ------- Run | Yrd Mat Min Sub Combat Hostiles Destroyed 21 | . 5 6 10 Guns 9 | . 5 1 3 Cannons 5 | . . 4 1 AOE 7 | . . 1 6 Classes Destroyed 5 | . 3 1 1 Tunneler 3 | . . 3 . Watcher 1 | . 1 . . Swarmer 3 | . 3 . . Grunt 8 | . 2 6 . Subdweller 10 | . . . 10 Best Kill Streak 6 | . 3 2 6 Combat Bots Only 6 | . 3 2 6 Max Kills in Single Turn 1 | . 1 1 1 Gunslinging . | . . . . Exploded 1 | . . 1 1 Melee . | . . . . Uniques/NPCs Destroyed . | . . . . Combat | -11 -10 -10 -10 -------- Run | Yrd Mat Min Sub Hostile Shots Fired 85 | . 36 15 34 Missed 26 | . 8 7 11 Damage Taken 1493 | . 314 224 955 Core 265 | . 72 31 162 Absorbed by Shields . | . . . . Core Remaining (%) 100 | 100 . . . Volleys Fired 64 | . 19 23 22 Largest 2 | . 2 2 2 Hottest 120 | . 40 120 120 Shots Fired 120 | . 38 46 36 Gun 68 | . 38 14 16 Cannon 30 | . . 26 4 Launcher 22 | . . 6 16 Special . | . . . . Kinetic 84 | . 38 14 32 Thermal 30 | . . 26 4 Explosive 6 | . . 6 . Electromagnetic . | . . . . Robot Hit Streak 12 | . 7 12 9 Robot Miss Streak 4 | . 4 2 2 Penetration Max . | . . . . Secondary Targets 1 | . 1 . . Max Gunslinging Chain 1 | . 1 . . Shots Hit Robots 65 | . 23 20 22 Core Hits 38 | . 9 11 18 Critical Kills . | . . . . Critical Parts Destroyed . | . . . . Critical Strikes . | . . . . Melee Attacks . | . . . . Impact . | . . . . Slashing . | . . . . Piercing . | . . . . Sneak Attacks . | . . . . Combat Hostiles . | . . . . Follow-up Attacks . | . . . . Damage Inflicted 1849 | . 295 439 1115 Guns 579 | . 294 64 221 Cannons 297 | . . 244 53 Explosions 967 | . . 126 841 Melee . | . . . . Ramming 6 | . 1 5 . Kinetic 1420 | . 294 64 1062 Thermal 297 | . . 244 53 Explosive 126 | . . 126 . Electromagnetic . | . . . . Impact . | . . . . Slashing . | . . . . Piercing . | . . . . Highest Corruption . | . . . . Average Corruption . | . . . . Corruption Purged . | . . . . Corruption Blocked . | . . . . Overload Shots . | . . . . Overflow Damage 31 | . . 11 20 Projectiles 5 | . . 5 . Explosions 26 | . . 6 20 Melee . | . . . . Knockbacks . | . . . . Impact . | . . . . Kinetic . | . . . . Secondary . | . . . . Self-Inflicted Damage 363 | . . 136 227 Shots 11 | . . 5 6 Rammed . | . . . . Targets Rammed 5 | . 1 4 . Kicked 5 | . 1 4 . Crushed . | . . . . Highest Temperature 240 | . 8 240 18 Average Temperature 64 | . 2 74 15 Received Heat Transfer 213 | . 114 51 48 Effects 3 | . . 3 . Energy Bleed 1 | . . 1 . Interference 2 | . . 2 . Siege Activations . | . . . . Robots Corrupted . | . . . . Combat Hostiles . | . . . . Parts Fried . | . . . . Impact Corruptions . | . . . . Robots Melted . | . . . . Combat Hostiles . | . . . . Parts Melted 2 | . . 1 1 Heat Transferred 629 | . . 518 111 Parts Sabotaged . | . . . . Parts Stolen . | . . . . Parts Stripped . | . . . . Power Chain Reactions . | . . . . Alert | -11 -10 -10 -10 ------- Run | Yrd Mat Min Sub Peak Influence 177 | . 177 148 . Initial 69 | . . 69 . Average 51 | . 74 48 . Maximum Alert Level . | . . . . Low Security (%) 100 | 100 100 100 . Level 1 . | . . . . Level 2 . | . . . . Level 3 . | . . . . Level 4 . | . . . . Level 5 . | . . . . High Security . | . . . . Max Security . | . . . . Squads Dispatched 2 | . 2 . . Investigation . | . . . . Extermination . | . . . . Reinforcement 2 | . 2 . . Assault . | . . . . Garrison . | . . . . Intercept . | . . . . Searches Triggered . | . . . . Construction Impeded . | . . . . Haulers Reinforced . | . . . . Active Scanning Responses . | . . . . Cargo Convoy Interrupts . | . . . . Stealth | -11 -10 -10 -10 --------- Run | Yrd Mat Min Sub Distress Signals 3 | . 2 1 . Communications Jammed . | . . . . Distress Signals . | . . . . Times Spotted 28 | . 8 8 12 Peak Tracking Total 4 | . 4 2 3 Tactical Retreats 1 | . . 1 . Traps | -11 -10 -10 -10 ------- Run | Yrd Mat Min Sub Traps Triggered 4 | . . . 4 Indirectly . | . . . . Trap Hack Attempts . | . . . . Triggered . | . . . . Disarmed . | . . . . Reprogrammed . | . . . . Reused . | . . . . Traps Extracted . | . . . . Installed . | . . . . Triggered . | . . . . Machines | -11 -10 -10 -10 ---------- Run | Yrd Mat Min Sub Machines Disabled 1 | . 1 . . Max in Single Turn 1 | . 1 . . Machines Repaired . | . . . . Machines Dismantled . | . . . . Machines Sabotaged . | . . . . Overloaded Fab Kills . | . . . . Hacking | -11 -10 -10 -10 --------- Run | Yrd Mat Min Sub Machines Accessed 4 | . 3 . 1 Terminals 3 | . 3 . . Fabricators . | . . . . Repair Stations . | . . . . Recycling Units . | . . . . Scanalyzers . | . . . . Garrison Access . | . . . . Total Hacks 15 | . 13 . 2 Successful 7 | . 5 . 2 Failed 7 | . 7 . . Catastrophic . | . . . . Database Lockouts 1 | . 1 . . Manual . | . . . . Terminals 13 | . 13 . . Fabricators . | . . . . Repair Stations . | . . . . Recycling Units . | . . . . Scanalyzers . | . . . . Garrison Access . | . . . . Terminal Hacks 7 | . 5 . 2 Record 5 | . 3 . 2 Prototype ID Bank 1 | . 1 . . Terminal Index 1 | . 1 . . Fabricator Hacks . | . . . . Repair Station Hacks . | . . . . Recycling Unit Hacks . | . . . . Scanalyzer . | . . . . Garrison Access Hacks . | . . . . Unauthorized Hacks . | . . . . Terminals . | . . . . Fabricators . | . . . . Repair Stations . | . . . . Recycling Units . | . . . . Scanalyzers . | . . . . Garrison Access . | . . . . Data Cores Recovered . | . . . . Used . | . . . . Hacking Detections 3 | . 3 . . Full Trace Events . | . . . . Feedback Events . | . . . . Feedback Blocked . | . . . . Robot Schematics Acquired . | . . . . Robots Built . | . . . . Authchips . | . . . . Time . | . . . . Total Robot Build Rating . | . . . . Part Schematics Acquired . | . . . . Parts Built . | . . . . Authchips . | . . . . Time . | . . . . Total Part Build Rating . | . . . . Parts Repaired . | . . . . Time . | . . . . Parts Recycled . | . . . . Recycled Matter . | . . . . Retrieved Matter . | . . . . Retrieved Components . | . . . . Parts Scanalyzed . | . . . . Part Schematics Acquired . | . . . . Parts Damaged . | . . . . Bothacking | -11 -10 -10 -10 ------------ Run | Yrd Mat Min Sub Used RIF Installer . | . . . . Robots Hacked . | . . . . Non-combat . | . . . . Combat . | . . . . Robot Hacks Applied . | . . . . Relay Couplers Released . | . . . . Fabnet Peak Effective % . | . . . . Robots Rewired . | . . . . Allies Hacked . | . . . . Hacks Repelled . | . . . . Allies | -11 -10 -10 -10 -------- Run | Yrd Mat Min Sub Total Allies 3 | . . 3 . Largest Group 3 | . . 3 . Highest-Rated Group 40 | . . 40 . Highest-Rated Ally 16 | . . 16 . Total Orders 1 | . . 1 . STAY 1 | . . 1 . Ally Attacks 17 | . . 17 . Total Damage 192 | . . 192 . Kills 2 | . . 2 . Allies Corrupted . | . . . . Allies Melted . | . . . . Intel | -11 -10 -10 -10 ------- Run | Yrd Mat Min Sub Robot Analysis Total . | . . . . Derelict Logs Recovered 3 | . . 2 1 Drone Launches . | . . . . Drone Recoveries . | . . . . Exploration | -11 -10 -10 -10 ------------- Run | Yrd Mat Min Sub Turns Passed 3726 | 61 376 1813 1476 Spaces Moved 1923 | 42 234 873 774 Core 3 | 3 . . . Treads . | . . . . Legs 1920 | 39 234 873 774 Wheels . | . . . . Hover . | . . . . Flight . | . . . . Fastest Speed 50 | 50 120 120 120 Average Speed 139 | 115 120 120 169 Slowest Speed 190 | 120 120 120 190 Overloaded Moves . | . . . . Propulsion Burnouts . | . . . . Robots Hopped . | . . . . Cave-ins Triggered . | . . . . Exploration Rate (%) 46 | 3 47 101 35 Regions Visited 3 Branch Regions 2 Pre-discovered Areas 1 | . . 1 . Known Exits Taken 1 | . . 1 . Unknown Exits Taken 2 | 1 1 . . Scrap Searched 7 | . . 1 6 Spaces Dug . | . . . . Terrain Destroyed 255 | . . 34 221 Melee . | . . . . Projectile 1 | . . . 1 AOE 254 | . . 34 220 Terrain Rammed . | . . . . Walls Destroyed . | . . . . Machines Disabled . | . . . . Actions | -11 -10 -10 -10 --------- Run | Yrd Mat Min Sub Total 2832 | 51 291 1591 899 Wait 767 | . 21 670 76 Move 1920 | 41 233 872 774 Hop . | . . . . Pick Up 19 | 4 8 3 4 Fast Attach 9 | 6 1 . 2 Attach 2 | . . 1 1 Detach . | . . . . Swap 18 | . 3 11 4 Drop 22 | . 5 7 10 Fire 64 | . 19 23 22 Melee . | . . . . Ram . | . . . . Kick 5 | . 1 4 . Crush . | . . . . Escape Stasis . | . . . . Rewire . | . . . . Trap . | . . . . Miscellaneous 6 | . . . 6 Route ------- -11/Scrapyard -10/Materials -10/Mines (discovered 3 exits: *Mat x2 / *Sub) -10/Subcaves History --------- Turn | Location | Event 6 | -11/Scrapyard | Discovered new exit (range 16) 62 | -11/Scrapyard | Entered Materials 113 | -10/Materials | Central database locked down 265 | -10/Materials | Discovered new exit (range 12) 303 | -10/Materials | Build established: Mutant 438 | -10/Materials | Entered Mines 459 | -10/Mines | Met a Derelict bent on vengeance 585 | -10/Mines | Assisted by bots powering up and referring to "LRC-V3" 1007 | -10/Mines | Excavation squad dispatched 1007 | -10/Mines | A large section of the Mines collapsed 1257 | -10/Mines | Excavation squad dispatched 1507 | -10/Mines | Excavation squad dispatched 1554 | -10/Mines | Learned Materials stockpile data 1568 | -10/Mines | Discovered new exit (range 8) 1577 | -10/Mines | Identified exit to Materials 1586 | -10/Mines | Learned location of Zion (-6) 1711 | -10/Mines | Build established: Scavenger-Mutant 1825 | -10/Mines | Discovered exit to Materials (range 8) 2245 | -10/Mines | Discovered new exit (range 5) 2249 | -10/Mines | Identified exit to Subcaves 2251 | -10/Mines | Entered Subcaves 2339 | -10/Subcaves | A swath of the cavern ceiling suddenly collapsed 2448 | -10/Subcaves | Learned Materials emergency access door positions 2750 | -10/Subcaves | Shifting Twisted Machinery released Sub. Laser 2836 | -10/Subcaves | Build established: Mutant 2959 | -10/Subcaves | Visited Clippyterm 3705 | -10/Subcaves | Ambushed by Subdweller buried in earth 3715 | -10/Subcaves | Core integrity fell below 50% 3718 | -10/Subcaves | Ambushed by Subdweller buried in earth 3718 | -10/Subcaves | Ambushed by Subdweller buried in earth 3718 | -10/Subcaves | Ambushed by Subdweller buried in earth 3724 | -10/Subcaves | Core integrity fell below 20% 3724 | -10/Subcaves | Ambushed by Subdweller buried in earth 3727 | -10/Subcaves | Destroyed by 60-QYQ(R) with Subdweller Laser Last Messages --------------- Dropped Beam Cannon. Acquired Barrage Gun. R5-635(R) destroyed. 2W-YYB(R): "ARGHSUB!" Aluminum Leg destroyed. V2-O1Y(R): "GOODGOOD!" Scrap Shield destroyed. AF-0G5(R) destroyed. 2W-YYB(R) destroyed. Ion Engine destroyed. V2-O1Y(R) destroyed. T9-WUV(R): "ARGHSUB!" 99-OSJ(R): "ARGHSUB!" 60-QYQ(R): "ARGHSUB!" Aluminum Leg destroyed. 99-OSJ(R) destroyed. N7-2FR(R): "ARGHSUB!" T9-WUV(R) destroyed. Sub. Shrapnel Launcher destroyed. Destroyed Sub. Shrapnel Launcher. Map ----- +----------------------------------------------------+ | ?????????????????????????????????????????????????? | | ?????????????????????????????????????????????????? | | ?????????????????????????????????????????????????? | | ?????????????????????????????????????????????????? | | ?????????????????????????????????????????????????? | | ?????????????????????????????????????????????????? | | ?????????????????????????????????????????????????? | | ?????????????????????????????????????????????????? | | ?????????????????????????????????????????????????? | | ?????????????????????????????????????????????????? | | ??????????????????????? ?????????????????????? | | ????????????????????? ##???????????????????? | | ?????????????????? ????????????????? | | ???????????????? #??????????????? | | ?????????????? ; ????????????? | | ?????????????? ; ????????????? | | ??????????????? ; ???????????? | | ???????????????? %& ;;#????????????? | | ?????????????????# ! ?????????????? | | ????????????????## $ %] ??????????????? | | ????????????????? ????????????????? | | ????????????????### ?????????????????? | | ????????????????# ; #??????????????????? | | ???????????????## ##?????????????????? | | ???????????????# R ### #???????????? | | ??????????????# &R @ #???????????? | | ???????????????# % #????????????? | | ???????????????# &% ## ##????????????? | | ???????????????# #??? #?????????????? | | ???????????????# #????? #????????????? | | ???????????????### #??????? #????????????? | | ?????????????????## ; #?????????????????????? | | ??????????????????##### ##?????????????????????? | | ?????????????????????# ] #??????????????????????? | | ?????????????????????# ##?????????????????????? | | ????????????????????## [ #?????????????????????? | | ???????????????????## #????###??????????????? | | ???????????????????# ##??### ##?????????????? | | ???????????????????## #???# #?????????????? | | ????????????????????# ##?## #?????????????? | | ????????????????????## ### #?????????????? | | ?????????????????????#### #?????????????? | | ????????????????????????## ###?????????????? | | ?????????????????????????# #???????????????? | | ????????????????????????## ##??????????????? | | ????????????????????????# #??????????????? | | ????????????????????????## #??????????????? | | ?????????????????????????##### ##??????????????? | | ?????????????????????????????# ##????####??????? | | ?????????????????##??????????## #????# ##?????? | +----------------------------------------------------+ Best States ------------- Heat Dissipation 35 Energy Generation 10 Energy Capacity 250 Matter Stores 300 Matter Capacity 300 Sight Range 16 Robot Scan Range 14 Terrain Scan Density 10 Armor Coverage 800 Evasion (%) 55 Item Schematics ----------------- None Robot Schematics ------------------ None Fabricated ------------ Nothing Alien Tech Used ----------------- None Achievements -------------- None Challenges ------------ None Game ------ Seed FrostMasterStick Manual? 0 Play Time 00:26:27 Cumulative 24.2 hours Start 2024.04.24 @ 23:47:32 End 2024.04.25 @ 00:12:48 Sessions 1 Manual Loads 0 Difficulty Rogue Special Mode None Game No. 25 Rogue 25 Adventurer 0 Explorer 0 Win Type - Total 0 Types 0/0/0/0/0/0/0/0/0 Lore% 23 Gallery% 30 Achievement% 20 Wizard Run 0 Options --------- Layout 1 ASCII 0 Keyboard 0 Movement Mouse Keybinds 0 Fullscreen 1 Font 24/Smallcaps Map View 50x35 Zoom Use 0% Tactical HUD 0 Map Filters NONE Filters NONE Steam 1 RUN: 7e78874c-40eb-484a-b422-946c8772b986